bitfinex-derivatives/quotes_ETHF0:USTF0_20250903
["timestamp","ask_amount","ask_price","bid_price","bid_amount"]
[1756940961776,1.20869529,4469.9,4469.8,1.76962572]
[1756940962182,1.20869529,4469.9,4469.8,0.9586]
[1756940962782,1.20869529,4469.9,4469.8,1.76962572]
[1756940963684,1.20869529,4469.9,4469.8,0.81102572]
[1756940964178,1.20869529,4469.9,4469.4,0.9586]
[1756940964179,0.91219529,4469.9,4469.5,0.81102572]
[1756940964384,0.194,4469.6,4469.5,0.81102572]
[1756940964580,0.4905,4469.6,4469.5,0.81102572]
[1756940965285,0.6806,4469.6,4469.5,0.81102572]
[1756940965874,0.6806,4469.6,4469.5,1.76962572]
[1756940969779,0.2965,4469.6,4469.5,1.76962572]
[1756940969985,0.4905,4469.6,4469.5,1.76962572]
[1756940970584,0.6806,4469.6,4469.5,1.76962572]
[1756940975090,1.49162572,4469.6,4469.5,0.9586]
[1756940975992,1.49162572,4469.6,4469.0,3.2078]
[1756940976193,0.6806,4469.1,4469.0,3.2078]
[1756940979184,0.1207,4469.5,4469.0,3.2078]
[1756940979390,0.2965,4469.9,4469.4,0.81102572]
[1756940979585,0.2965,4469.9,4469.8,0.81102572]
[1756940979795,0.68342564,4469.9,4469.8,0.81102572]
[1756940979990,0.87352564,4469.9,4469.8,0.81102572]
[1756940980998,0.2965,4469.8,4469.6,3.2078]
[1756940981190,0.1207,4470.0,4469.6,3.2078]
[1756940981391,0.6806,4469.7,4469.6,3.2078]
[1756940982498,0.87370053,4469.7,4469.6,3.2078]
[1756940984298,0.48960053,4469.7,4469.6,3.2078]
[1756940984691,0.68120053,4469.7,4469.6,3.2078]
[1756940984993,0.87840053,4469.7,4469.6,3.2078]
[1756940986391,0.48960053,4469.7,4469.6,3.2078]
[1756940987598,0.68120053,4469.7,4469.6,3.2078]
[1756940988105,0.48960053,4469.7,4469.6,3.2078]
[1756940989595,0.87840053,4469.7,4469.6,3.2078]
[1756940989995,0.68120053,4469.7,4469.6,3.2078]
[1756940990298,1.21188472,4469.7,4469.6,3.2078]
[1756940990801,1.40908472,4469.7,4469.6,3.2078]
[1756940991404,1.21598419,4469.7,4469.6,3.2078]
[1756940993395,1.01878419,4469.7,4469.6,3.2078]
[1756940994904,1.21598419,4469.7,4469.6,3.2078]
[1756940999801,1.21598419,4469.7,4468.8,0.9586]
[1756940999802,0.6846,4468.9,4468.8,0.9586]
[1756941000010,1.44428419,4468.9,4468.8,0.9586]
[1756941000404,1.63733779,4468.9,4468.8,0.9586]
[1756941001416,1.44428419,4468.9,4468.8,0.9586]
[1756941001900,0.1916,4468.8,4468.6,3.2078]
[1756941002098,0.4874,4468.7,4468.6,3.2078]
[1756941002303,1.02459767,4468.7,4468.6,3.2078]
[1756941002508,1.22179767,4468.7,4468.6,3.2078]
[1756941007611,1.45079767,4468.7,4468.6,3.2078]
[1756941008813,0.83299767,4468.7,4468.6,3.2078]
[1756941009309,0.2958,4468.7,4468.6,3.2078]
[1756941009516,0.1118,4468.9,4468.6,7.66058]
[1756941009708,0.1118,4468.9,4468.8,0.97330273]
[1756941010217,0.4076,4468.9,4468.8,1.20230273]
[1756941010411,0.7964,4468.9,4468.7,0.229]
[1756941010913,0.3034,4468.9,4468.6,3.4368]
[1756941011114,0.1118,4468.9,4468.6,3.2078]
[1756941011310,0.2958,4468.8,4468.6,3.2078]
[1756941011510,0.1118,4468.9,4468.6,3.2078]
[1756941012113,0.3096,4468.8,4468.6,3.2078]
[1756941012313,0.1118,4468.9,4468.6,3.2078]
[1756941012713,0.3092,4468.9,4468.6,3.2078]
[1756941012921,0.1118,4468.9,4468.6,3.2078]
[1756941014714,0.3096,4468.8,4468.6,3.2078]
[1756941014915,0.3092,4468.9,4468.6,3.2078]
[1756941015114,0.1118,4468.9,4468.6,3.2078]
[1756941015314,0.3096,4468.8,4468.6,3.2078]
[1756941015616,0.3092,4468.9,4468.6,3.2078]
[1756941015817,0.1974,4468.8,4468.6,3.2078]
[1756941016118,0.3096,4468.7,4468.6,3.2078]
[1756941016706,0.3096,4468.4,4468.1,5.67990273]
[1756941016908,0.1165,4468.5,4468.1,5.67990273]
[1756941017122,0.3096,4468.4,4468.1,5.67990273]
[1756941017513,0.3139,4468.5,4468.1,5.67990273]
[1756941017714,0.1974,4468.4,4468.1,5.67990273]
[1756941018316,0.3096,4468.4,4468.1,4.40910273]
[1756941018518,0.3096,4468.3,4468.1,4.40910273]
[1756941019217,0.1118,4468.4,4468.1,4.40910273]
[1756941019618,0.1118,4468.4,4468.1,4.63290273]
[1756941019922,0.1118,4468.4,4468.1,4.40910273]
[1756941023920,0.4214,4468.4,4468.1,4.40910273]
[1756941025117,0.3096,4468.3,4468.1,4.40910273]
[1756941026719,0.507,4468.2,4468.1,4.18110273]
[1756941026926,0.507,4468.2,4468.1,4.40910273]
[1756941027427,0.3096,4468.2,4468.1,4.40910273]
[1756941027726,0.4214,4468.4,4468.1,4.40910273]
[1756941027926,0.1118,4468.4,4468.1,4.40910273]
[1756941028125,0.3096,4468.3,4468.1,4.40910273]
[1756941028522,0.1118,4468.4,4468.1,4.40910273]
[1756941029028,0.3096,4468.3,4468.1,4.40910273]
[1756941029527,0.3092,4468.4,4468.1,4.40910273]
[1756941030226,0.3096,4468.3,4468.1,4.40910273]
[1756941030426,0.1974,4468.2,4468.1,4.40910273]
[1756941030616,0.507,4468.2,4468.1,4.40910273]
[1756941032025,0.3096,4468.2,4468.1,4.40910273]
[1756941032226,0.1118,4468.4,4468.1,4.40910273]
[1756941032427,0.3096,4468.3,4468.1,4.40910273]
[1756941032616,0.1118,4468.4,4468.1,4.40910273]
[1756941032820,0.3096,4468.3,4468.1,4.40910273]
[1756941033023,0.1118,4468.4,4468.1,4.40910273]
[1756941033422,0.3096,4468.3,4468.1,4.40910273]
[1756941035727,0.3092,4468.4,4468.1,4.40910273]
[1756941035920,0.3096,4468.3,4468.1,4.40910273]
[1756941036122,0.3092,4468.4,4468.1,4.40910273]
[1756941036333,0.3096,4468.2,4468.1,4.40910273]
[1756941040022,0.1118,4468.4,4468.1,4.40910273]
[1756941040223,0.4214,4468.4,4468.1,4.40910273]
[1756941040622,0.1118,4468.4,4468.1,4.40910273]
[1756941041425,0.1118,4468.4,4468.3,0.81125466]
[1756941041628,0.3096,4468.7,4468.3,1.03925466]
[1756941041927,0.3115,4468.9,4468.6,4.01905466]
[1756941042129,0.3115,4468.9,4468.8,0.81125466]
[1756941042331,0.5099,4468.9,4468.8,0.81125466]
[1756941042533,1.0504005,4468.9,4468.8,0.81125466]
[1756941043232,0.1118,4469.1,4468.8,0.81125466]
[1756941043431,0.1118,4469.1,4468.9,0.228]
[1756941043629,0.3115,4469.0,4468.9,0.228]
[1756941043926,0.4295,4469.0,4468.9,0.228]
[1756941044231,0.4295,4469.0,4468.9,41.028]
[1756941044419,0.4295,4469.0,4468.9,0.228]
[1756941044826,0.4295,4469.0,4468.9,0.884]
[1756941046427,0.1118,4469.1,4468.9,0.884]
[1756941047635,0.4233,4469.1,4468.9,0.884]
[1756941048028,0.3115,4469.0,4468.9,0.884]
[1756941049633,0.4295,4469.0,4468.9,0.884]
[1756941050627,0.8215,4469.0,4468.9,0.884]
[1756941052532,0.6279,4469.0,4468.9,0.884]
[1756941052734,0.4295,4469.0,4468.9,0.884]
[1756941056935,0.6279,4469.0,4468.9,0.884]
[1756941058440,0.8215,4469.0,4468.9,0.884]
[1756941058742,4.8215,4469.0,4468.9,0.656]
[1756941059343,0.8215,4469.0,4468.9,0.656]
[1756941060046,0.8215,4469.0,4468.8,0.81125466]
[1756941060244,0.7035,4468.9,4468.8,0.81125466]
[1756941061044,0.4295,4469.0,4468.8,0.81125466]
[1756941061247,0.4295,4469.0,4468.9,0.227]
[1756941061542,0.4233,4469.2,4468.9,0.227]
[1756941061742,0.4276,4469.5,4469.1,4.01905466]
[1756941061941,0.4276,4469.5,4469.4,0.81125466]
[1756941062144,0.4276,4469.5,4469.4,1.03925466]
[1756941062941,0.4276,4469.5,4469.4,1.56665466]
[1756941066656,0.8196,4469.5,4469.4,1.56665466]
[1756941066851,0.8196,4469.5,4469.4,1.33865466]
[1756941067056,0.8196,4469.5,4469.4,1.56565466]
[1756941068353,0.8196,4469.5,4469.4,1.33865466]
[1756941068553,0.8196,4469.5,4469.4,0.7544]
[1756941068752,0.8196,4469.5,4469.4,1.56565466]
[1756941072459,0.8196,4469.5,4469.4,0.7544]
[1756941072760,0.8196,4469.5,4469.4,1.56565466]
[1756941079468,0.8196,4469.5,4469.4,1.33865466]
[1756941081763,0.8196,4469.5,4469.1,3.2078]
[1756941081764,5.85459466,4469.5,4469.1,3.2078]
[1756941082065,1.50745466,4469.2,4469.1,3.2078]
[1756941082264,0.6962,4468.7,4468.6,3.2078]
[1756941082666,0.6962,4468.7,4468.6,4.9015]
[1756941082869,0.88082076,4468.7,4468.6,4.9015]
[1756941083063,0.88082076,4468.7,4468.6,3.2078]
[1756941084563,0.6962,4468.7,4468.6,3.2078]
[1756941084758,0.88067776,4468.7,4468.6,3.2078]
[1756941086272,0.88062201,4468.7,4468.6,3.2078]
[1756941091175,0.88062201,4468.7,4468.0,5.0597]
[1756941091176,0.6962,4468.1,4468.0,5.0597]
[1756941091373,0.88062201,4468.1,4468.0,5.0597]
[1756941092487,0.88062201,4468.1,4468.0,3.2078]
[1756941093882,0.123,4468.0,4467.5,3.2078]
[1756941094181,1.50745466,4467.6,4467.3,2.1342]
[1756941094382,0.6962,4467.4,4467.3,2.1342]
[1756941094585,0.88028056,4467.4,4467.3,2.1342]
[1756941095378,0.8192,4467.0,4466.9,3.4155]
[1756941095583,1.00328056,4467.0,4466.9,3.4155]
[1756941096379,1.00328056,4467.0,4466.9,3.9169]
[1756941103189,0.88028056,4467.0,4466.9,3.9169]
[1756941105088,0.68638056,4467.0,4466.9,3.9169]
[1756941105987,0.18408056,4467.0,4466.9,3.9169]
[1756941106287,0.224,4467.5,4467.4,0.7046]
[1756941106482,0.41338267,4467.5,4467.4,3.9124]
[1756941106788,0.18938267,4467.5,4467.4,3.9124]
[1756941107578,0.1119,4467.8,4467.4,3.6087]
[1756941107781,0.1119,4467.8,4467.6,0.7046]
[1756941107782,0.17871552,4467.7,4467.6,0.7046]
[1756941111092,0.67971552,4467.7,4467.6,0.7046]
[1756941111291,0.87161552,4467.7,4467.6,0.7046]
[1756941119896,0.2944,4467.6,4467.4,3.2078]
[1756941120288,0.67971552,4467.5,4467.4,3.6087]
[1756941120498,0.67971552,4467.5,4467.4,3.9124]
[1756941120996,0.17871552,4467.5,4467.4,3.9124]
[1756941121196,0.2944,4467.5,4467.4,3.9124]
[1756941121500,0.47311552,4467.5,4467.4,3.9124]
[1756941121706,0.67971552,4467.5,4467.4,3.9124]
[1756941124010,0.47311552,4467.5,4467.4,3.9124]
[1756941124206,0.17871552,4467.5,4467.4,8.1394]
[1756941124400,0.17966941,4467.7,4467.6,0.3037]
[1756941124600,0.17966939,4467.7,4467.6,1.90611788]
[1756941125007,0.2944,4468.3,4467.7,0.3037]
[1756941125207,0.501,4468.3,4468.2,0.7046]
[1756941125403,1.04368472,4468.3,4468.2,0.7046]
[1756941125606,0.83708472,4468.3,4468.2,0.7046]
[1756941126009,1.23558472,4468.3,4468.2,0.7046]
[1756941126204,1.23558472,4468.3,4468.2,0.4009]
[1756941126404,1.23558472,4468.3,4468.2,0.2059]
[1756941128813,1.23558472,4468.3,4468.2,0.7046]
[1756941131315,1.23558472,4468.3,4468.2,0.2059]
[1756941133712,1.23558472,4468.3,4468.2,0.4009]
[1756941133919,1.23558472,4468.3,4468.2,0.7095]
[1756941134217,1.23558472,4468.3,4468.2,0.2059]
[1756941134719,1.23579172,4468.3,4468.2,0.2059]
[1756941137012,1.23579172,4468.3,4468.1,3.2078]
[1756941137216,1.24979172,4468.2,4468.1,3.2078]
[1756941137411,0.1228,4468.0,4467.6,8.2077]
[1756941137613,0.7069,4467.7,4467.6,8.2077]
[1756941137813,1.24979172,4467.7,4467.6,8.2077]
[1756941138413,1.24979172,4467.7,4467.6,8.4032]
[1756941138821,1.24979172,4467.7,4467.6,3.4033]
[1756941140521,1.24979172,4467.7,4467.6,3.2078]
[1756941143020,1.24979172,4467.7,4467.6,3.4033]
[1756941143926,1.24979172,4467.7,4467.6,3.7119]
[1756941144229,1.24979172,4467.7,4467.6,3.4033]
[1756941145522,1.24979172,4467.7,4467.6,3.2078]
[1756941148132,0.3946,4467.1,4467.0,7.1662]
[1756941148430,2.4513096,4467.1,4467.0,7.1662]
[1756941148631,2.4513096,4467.1,4467.0,7.3617]
[1756941149922,2.45182287,4467.1,4467.0,3.4033]
[1756941151932,2.45182287,4467.1,4467.0,3.9122]
[1756941153531,2.45182287,4467.1,4467.0,3.6036]
[1756941153932,2.45182287,4467.1,4467.0,3.9122]
[1756941154234,1.90841788,4467.1,4467.0,3.9122]
[1756941154926,2.08906071,4467.1,4467.0,3.6036]
[1756941155124,2.63213177,4467.1,4467.0,3.6036]
[1756941155528,2.63213177,4467.1,4467.0,3.9122]
[1756941165447,2.46977673,4467.1,4467.0,3.9122]
[1756941166051,10.77147673,4467.1,4466.4,2.2421]
[1756941166343,10.77147673,4467.1,4464.5,0.1039]
[1756941166344,3.714,4466.4,4464.5,0.1039]
[1756941166548,0.81216284,4464.6,4464.0,0.3988]
[1756941166849,1.62432568,4464.1,4464.0,0.3988]
[1756941167142,1.76787673,4464.1,4464.0,0.7915]
[1756941167345,1.76787673,4464.1,4464.0,3.3383]
[1756941167942,0.95571389,4464.1,4464.0,3.3383]
[1756941168747,0.99486806,4464.1,4464.0,0.7915]
[1756941169341,0.45155982,4464.1,4464.0,0.7915]
[1756941172640,0.21955982,4464.1,4464.0,4.7915]
[1756941172845,0.21955982,4464.1,4464.0,7.9993]
[1756941177844,0.21955982,4464.1,4464.0,8.2313]
[1756941179145,0.21955982,4464.1,4464.0,4.2313]
[1756941180155,0.1119,4464.3,4464.2,0.3927]
[1756941180353,0.21899772,4464.7,4464.2,0.6887]
[1756941180556,0.21899772,4464.6,4464.5,4.0142]
[1756941182258,0.21899772,4464.6,4464.5,3.6215]
[1756941182452,1.03116056,4464.6,4464.5,0.8064]
[1756941183348,0.21899772,4464.6,4464.5,0.8064]
[1756941185761,3.714,4464.4,4462.8,0.10186777]
[1756941185959,0.81216284,4462.9,4462.8,0.39786777]
[1756941186161,1.61632449,4462.9,4462.8,0.39786777]
[1756941186461,1.85432449,4462.9,4462.8,0.79056777]
[1756941186662,1.04216165,4462.9,4462.8,5.78866777]
[1756941186864,0.80416165,4462.9,4462.8,5.78866777]
[1756941187057,1.61632449,4462.9,4462.8,5.78866777]
[1756941187368,0.80416165,4462.9,4462.8,5.78866777]
[1756941188763,0.80416165,4462.9,4461.9,3.2078]
[1756941188764,38.10939449,4462.9,4461.9,0.296]
[1756941188966,3.2078,4462.1,4462.0,0.8064]
[1756941189260,4.01196165,4462.1,4462.0,0.8064]
[1756941189463,4.01196165,4462.1,4462.0,9.8045]
[1756941189665,0.239,4462.4,4462.0,9.8045]
[1756941189666,0.239,4462.6,4462.5,0.8064]
[1756941189860,0.81216284,4462.6,4462.5,0.8064]
[1756941190057,35.30282449,4462.9,4462.6,0.296]
[1756941190257,35.30282449,4462.9,4462.8,0.6887]
[1756941190459,35.54082449,4462.9,4462.8,0.6887]
[1756941190766,32.33302449,4462.9,4462.8,0.6887]
[1756941191365,33.14518733,4462.9,4462.8,0.6887]
[1756941191768,32.09502449,4462.9,4462.8,0.6887]
[1756941191959,0.238,4463.1,4463.0,0.5274]
[1756941192163,0.238,4463.1,4463.0,0.8439]
[1756941193779,0.81216284,4463.3,4463.2,0.7232]
[1756941194062,1.05016284,4463.3,4463.2,0.7232]
[1756941195065,1.18076284,4463.3,4463.2,0.3165]
[1756941195264,1.18076284,4463.3,4463.2,0.7232]
[1756941195467,1.11546284,4463.3,4463.2,0.7232]
[1756941196370,1.32176284,4463.3,4463.2,0.50465724]
[1756941197066,0.4124,4463.1,4463.0,0.3217]
[1756941197272,0.4124,4463.1,4463.0,0.5274]
[1756941198165,0.6717,4463.1,4462.8,0.3165]
[1756941198370,0.2061,4462.6,4462.5,4.0487]
[1756941198672,0.238,4462.7,4462.5,4.0487]
[1756941198971,0.238,4462.7,4462.6,0.7232]
[1756941198972,1.05016284,4462.7,4462.6,0.7232]
[1756941200068,0.81216284,4462.7,4462.6,0.7232]
[1756941200474,1.61873894,4463.3,4463.2,0.4067]
[1756941200674,2.66890178,4463.3,4463.2,0.7232]
[1756941201576,3.45787622,4463.3,4463.2,0.7232]
[1756941201971,0.2593,4463.2,4463.1,0.3165]
[1756941202176,1.46067444,4463.2,4463.1,0.3165]
[1756941203075,1.20137444,4463.2,4463.1,0.7232]
[1756941205765,1.46067444,4463.2,4463.1,0.7232]
[1756941206777,1.46067444,4463.2,4463.1,0.5175]
[1756941206973,1.46067444,4463.2,4463.1,0.3165]
[1756941207874,1.46067444,4463.2,4463.1,0.5175]
[1756941208079,1.20137444,4463.2,4463.1,0.5175]
[1756941208281,1.20137444,4463.2,4463.1,0.7232]
[1756941209790,1.69767444,4463.2,4463.1,0.3165]
[1756941209990,1.69767444,4463.2,4463.1,0.5175]
[1756941211390,2.90401338,4463.2,4463.1,0.5175]
[1756941212383,2.64471338,4463.2,4463.1,0.7232]
[1756941212891,2.90401338,4463.2,4463.1,0.7232]
[1756941213094,2.90401338,4463.2,4463.1,0.5175]
[1756941213294,2.90401338,4463.2,4463.1,0.29894742]
[1756941213490,1.69767444,4463.2,4463.1,0.29894742]
[1756941214292,1.69767444,4463.2,4463.1,0.09794742]
[1756941215189,1.23743195,4463.2,4462.5,3.3255]
[1756941215388,1.54156284,4462.6,4462.5,3.931]
[1756941215590,1.54156284,4462.6,4462.5,3.7253]
[1756941215591,2.36559479,4462.6,4462.5,3.7253]
[1756941217887,2.36559479,4462.6,4462.5,4.0517]
[1756941218490,2.36559479,4462.6,4462.5,0.7232]
[1756941219097,3.5708372,4462.6,4462.5,0.7232]
[1756941219296,2.36559479,4462.6,4462.5,0.7232]
[1756941219499,3.5708372,4462.6,4462.5,0.7232]
[1756941220295,2.36559479,4462.6,4462.5,0.7232]
[1756941223099,2.36559479,4462.6,4462.5,0.8455]
[1756941223499,2.04859479,4462.6,4462.5,0.8455]
[1756941224894,1.02913195,4462.6,4462.5,0.8455]
[1756941225094,0.79413195,4462.6,4462.5,0.8455]
[1756941225294,1.02913195,4462.6,4462.5,0.8455]
[1756941226000,0.58803195,4462.6,4462.5,5.06958999]
[1756941226303,0.58803195,4463.0,4462.5,4.75308999]
[1756941226503,0.82303195,4462.9,4462.5,0.529]
[1756941226690,0.78923195,4462.8,4462.7,0.4146]
[1756941226894,0.78923195,4462.8,4462.7,0.7367]
[1756941230605,0.82303195,4462.8,4462.7,0.7367]
[1756941231003,1.54793195,4462.8,4462.7,0.7367]
[1756941231801,0.78923195,4462.8,4462.7,0.7367]
[1756941232006,1.22643195,4462.8,4462.7,0.7367]
[1756941232205,1.54793195,4462.8,4462.7,0.7367]
[1756941233006,1.22643195,4462.8,4462.7,0.7367]
[1756941234204,0.78923195,4462.8,4462.7,0.7367]
[1756941234406,0.58803195,4462.8,4462.7,0.7367]
[1756941234609,0.78923195,4462.8,4462.7,0.7367]
[1756941237208,1.11073195,4462.8,4462.7,0.7367]
[1756941237607,0.78923195,4462.8,4462.7,0.7367]
[1756941238712,0.58803195,4462.8,4462.7,0.7367]
[1756941239606,0.112,4463.0,4462.8,0.3221]
[1756941239607,0.59070198,4462.9,4462.8,0.3221]
[1756941239905,0.59070198,4462.9,4462.8,0.7367]
[1756941240100,0.99410198,4462.9,4462.8,0.7367]
[1756941240304,1.31560198,4462.9,4462.8,0.5337]
[1756941240607,1.31560198,4462.9,4462.5,0.1223]
[1756941240909,0.4034,4462.6,4462.5,0.5369]
[1756941241108,0.7249,4462.6,4462.5,0.5369]
[1756941241308,1.31560198,4462.6,4462.5,0.4146]
[1756941241514,1.31560198,4462.6,4462.5,0.5337]
[1756941244312,0.5129,4462.5,4462.4,3.4851]
[1756941244617,1.42510198,4462.5,4462.4,3.4851]
[1756941244816,1.31560198,4462.5,4462.4,4.0188]
[1756941245407,1.31560198,4462.5,4462.4,4.2218]
[1756941246521,1.54960198,4462.5,4462.4,4.2218]
[1756941248315,0.59070198,4462.5,4462.4,4.2218]
[1756941248519,0.234,4462.6,4462.5,0.859]
[1756941248823,0.82458455,4462.6,4462.5,0.859]
[1756941249221,0.59058455,4462.6,4462.5,0.859]
[1756941253021,0.59058455,4462.6,4462.5,1.092]
[1756941256225,0.80088455,4462.6,4462.5,1.092]
[1756941256427,1.31988455,4462.6,4462.5,0.859]
[1756941256724,1.31988455,4462.6,4462.5,0.7367]
[1756941259736,1.31988455,4462.6,4462.5,0.5337]
[1756941260132,1.00978455,4462.6,4462.5,0.7277]
[1756941260326,0.80088455,4462.6,4462.5,0.857]
[1756941264333,1.31988455,4462.6,4462.5,0.857]
[1756941265632,1.00978455,4462.6,4462.5,0.857]
[1756941265833,0.59058455,4462.6,4462.5,0.857]
[1756941270241,0.80088455,4462.6,4462.5,0.857]
[1756941271445,0.59058455,4462.6,4462.5,0.857]
[1756941273345,0.59058455,4462.6,4462.5,1.089]
[1756941273638,0.3101,4463.2,4462.5,0.7702]
[1756941273941,0.2103,4463.2,4463.1,0.7277]
[1756941274137,0.4192,4463.2,4463.1,0.7277]
[1756941274343,0.7293,4463.2,4463.1,0.7277]
[1756941275142,0.7293,4463.2,4463.1,0.3188]
[1756941275447,0.7293,4463.2,4463.1,0.533]
[1756941278548,0.7293,4463.2,4463.1,0.7277]
[1756941278736,0.7293,4463.2,4463.1,0.3188]
[1756941282351,0.7293,4463.2,4463.1,0.533]
[1756941285444,0.4192,4463.2,4462.9,3.2078]
[1756941285644,0.7219,4463.1,4463.0,0.3211]
[1756941285944,1.3092986,4463.1,4463.0,0.5316]
[1756941289555,1.3092986,4463.1,4463.0,0.739]
[1756941289755,1.3092986,4463.1,4463.0,0.8578]
[1756941290554,1.0118986,4463.1,4463.0,0.8578]
[1756941290756,0.7985986,4463.1,4463.0,0.8578]
[1756941291356,0.7985986,4463.1,4463.0,0.5367]
[1756941291556,0.7985986,4463.1,4463.0,0.8578]
[1756941294853,0.7985986,4463.1,4462.9,4.02132505]
[1756941294854,0.5873986,4463.1,4462.9,4.02132505]
[1756941295051,0.5873986,4463.0,4462.9,4.02132505]
[1756941305465,4.5873986,4463.0,4462.9,3.2078]
[1756941305657,5.85499365,4463.0,4462.8,4.9999]
[1756941305858,0.5873986,4462.9,4462.8,4.9999]
[1756941306562,0.8173986,4462.9,4462.8,4.9999]
[1756941306764,0.8173986,4462.9,4462.6,0.81352505]
[1756941307060,0.5873986,4462.8,4462.6,0.81352505]
[1756941307257,0.5873986,4462.7,4462.6,0.81352505]
[1756941311058,0.5873986,4462.7,4462.6,1.04352505]
[1756941311266,0.5873986,4462.7,4462.5,0.81352505]
[1756941311462,0.5873986,4462.6,4462.5,0.81352505]
[1756941314767,0.5873986,4462.6,4462.3,8.2077]
[1756941314973,0.5873986,4462.5,4462.3,8.2077]
[1756941315166,0.5873986,4462.4,4462.3,8.2077]
[1756941317961,0.5873986,4462.4,4462.3,3.2078]
[1756941322966,0.5873986,4462.4,4461.8,4.9999]
[1756941323168,0.5873986,4462.3,4461.8,5.2299]
[1756941323363,0.5873986,4462.2,4461.8,5.2299]
[1756941323572,0.5873986,4462.1,4461.8,4.9999]
[1756941323771,0.81352505,4462.5,4461.9,0.81352505]
[1756941323772,0.5873986,4462.0,4461.9,0.81352505]
[1756941325872,0.5873986,4462.0,4461.7,3.2078]
[1756941326073,0.5873986,4461.9,4461.7,4.02132505]
[1756941326273,0.229,4462.5,4461.8,0.81352505]
[1756941326473,0.58587692,4462.4,4461.8,0.81352505]
[1756941326673,0.58587692,4462.3,4461.8,0.81352505]
[1756941326976,0.58587692,4462.2,4461.8,0.81352505]
[1756941327172,0.58587692,4462.1,4461.8,0.81352505]
[1756941327368,0.58587692,4462.0,4461.8,0.81352505]
[1756941327676,0.58587692,4461.9,4461.8,0.81352505]
[1756941328676,0.58587692,4461.9,4461.8,1.04252505]
[1756941328872,0.1119,4462.7,4461.8,5.26664505]
[1756941329073,0.1119,4462.7,4462.6,0.81352505]
[1756941329274,0.6978164,4462.7,4462.6,0.81352505]
[1756941339885,0.6978164,4462.7,4462.3,3.2078]
[1756941339886,0.6978164,4462.7,4462.3,4.02132505]
[1756941340186,0.5859164,4462.6,4462.3,4.02132505]
[1756941346685,0.5859164,4462.5,4462.3,4.02132505]
[1756941346886,0.5859164,4462.4,4462.3,4.02132505]
[1756941347180,0.22408,4463.0,4462.3,4.02132505]
[1756941347387,0.58638466,4462.9,4462.3,4.02132505]
[1756941347586,0.58638466,4462.8,4462.3,3.2078]
[1756941347786,0.69828466,4462.7,4462.3,3.2078]
[1756941347988,0.58638466,4462.6,4462.3,3.2078]
[1756941349383,0.58638466,4462.5,4462.3,3.2078]
[1756941349588,0.22408,4463.0,4462.3,3.2078]
[1756941349891,0.58661967,4462.9,4462.3,3.2078]
[1756941350091,0.58661967,4462.8,4462.3,3.2078]
[1756941350389,0.58661967,4462.7,4462.3,3.2078]
[1756941350594,0.58661967,4462.6,4462.3,3.2078]
[1756941350793,0.58661967,4462.5,4462.3,3.2078]
[1756941350983,0.229,4463.0,4462.3,3.2078]
[1756941351187,0.58660913,4462.9,4462.3,3.2078]
[1756941351393,0.58660913,4462.8,4462.3,3.2078]
[1756941351590,0.58660913,4462.7,4462.3,3.2078]
[1756941351793,0.58660913,4462.6,4462.3,3.2078]
[1756941351990,0.58660913,4462.5,4462.3,3.2078]
[1756941352290,0.229,4463.0,4462.3,3.2078]
[1756941352486,0.58658843,4462.9,4462.3,3.2078]
[1756941352690,0.58658843,4462.8,4462.3,3.2078]
[1756941352887,0.58658843,4462.7,4462.3,3.2078]
[1756941353083,0.58658843,4462.6,4462.3,3.2078]
[1756941353286,0.58658843,4462.5,4462.3,3.2078]
[1756941353484,0.229,4463.0,4462.3,3.2078]
[1756941353695,1.27644765,4462.9,4462.8,0.7072]
[1756941354394,0.97294765,4462.9,4462.8,0.7072]
[1756941355095,1.27644765,4462.9,4462.8,0.7072]
[1756941357190,0.77574765,4462.9,4462.8,0.7072]
[1756941358697,0.58664765,4462.9,4462.8,0.7072]
[1756941358890,0.58664765,4462.9,4462.8,3.915]
[1756941360195,0.58664765,4462.9,4462.6,0.97638952]
[1756941360196,1.27644765,4462.9,4462.4,0.3067]
[1756941360502,0.6898,4462.4,4462.3,0.7072]
[1756941360702,1.27644765,4462.4,4462.3,0.7072]
[1756941361598,0.97294765,4462.4,4462.3,0.7072]
[1756941362203,1.27644765,4462.4,4462.3,0.7072]
[1756941363003,0.97294765,4462.4,4462.3,0.7072]
[1756941364103,1.27644765,4462.4,4462.3,0.7072]
[1756941364299,0.97294765,4462.4,4462.3,0.7072]
[1756941365000,0.77574765,4462.4,4462.3,0.7072]
[1756941365907,0.58664765,4462.4,4462.3,0.7072]
[1756941366199,1.27756059,4462.8,4462.7,0.7072]
[1756941366396,1.27754491,4462.8,4462.7,0.7072]
[1756941368102,0.97404491,4462.8,4462.7,0.7072]
[1756941370013,1.27754491,4462.8,4462.7,0.7072]
[1756941370704,1.27754491,4462.8,4462.7,0.5114]
[1756941373306,0.6912,4462.4,4462.3,3.5143]
[1756941373610,1.27894491,4462.4,4462.3,3.7029]
[1756941374508,1.27894491,4462.4,4462.2,4.9999]
[1756941374509,1.21184491,4462.4,4462.2,4.9999]
[1756941374703,0.77924491,4462.3,4462.2,5.6966]
[1756941374900,1.27894491,4462.3,4462.2,5.6966]
[1756941375503,1.27894491,4462.3,4462.2,5.495]
[1756941375703,1.27894491,4462.3,4462.2,0.4951]
[1756941376305,1.27894491,4462.3,4462.2,0.3065]
[1756941376506,0.6912,4461.9,4461.8,3.598]
[1756941376707,1.27894491,4461.9,4461.8,3.598]
[1756941376907,0.77924491,4461.9,4461.8,3.598]
[1756941377213,0.58774491,4461.9,4461.8,3.9045]
[1756941379515,0.77924491,4461.9,4461.8,3.9045]
[1756941379710,1.27894491,4461.9,4461.8,3.9045]
[1756941381216,1.27894491,4461.9,4461.8,3.7029]
[1756941381710,1.27894491,4461.9,4461.8,3.9045]
[1756941383510,0.77924491,4461.9,4461.8,3.9045]
[1756941383710,0.58774491,4461.9,4461.8,3.9045]
[1756941384515,0.77924491,4461.9,4461.8,3.9045]
[1756941385616,0.58774491,4461.9,4461.8,3.9045]
[1756941386413,1.20524241,4463.6,4463.0,0.4257]